lending/lending_fUSD_20250424
["ID","MTS","AMOUNT","RATE_DAILY","PERIOD"]
[358833357,1745487340751,-328.20933706,0.00034114,30]
[358833358,1745487340778,-915.72216857,0.00034114,30]
[358833359,1745487340808,-200.0,0.00035,46]
[358833360,1745487340840,-775.079412,0.000351,30]
[358833361,1745487340868,-424.651617,0.000351,30]
[358833362,1745487340896,-250.779155,0.000351,30]
[358833363,1745487340924,-775.079412,0.00035849,30]
[358833364,1745487340952,-152.909533,0.00035849,30]
[358833365,1745487340980,-424.651617,0.00035849,30]
[358833366,1745487341010,-250.779155,0.00035849,30]
[358833367,1745487341040,-200.0,0.00036,49]
[358833368,1745487341070,-212.0,0.0003648,30]
[358833369,1745487341100,-775.079412,0.00036599,30]
[358833370,1745487341130,-152.909533,0.00036599,30]
[358833371,1745487341158,-424.651617,0.00036599,30]
[358833372,1745487341189,-250.779155,0.00036599,30]
[358833373,1745487341223,-343.9,0.000367,51]
[358833374,1745487341253,-157.453687,0.000367,51]
[358833375,1745487341283,-157.453687,0.000367,51]
[358833376,1745487341312,-152.909533,0.000367,51]
[358833377,1745487341341,-152.909533,0.000367,51]
[358833378,1745487341862,-152.909533,0.000367,51]
[358833379,1745487341889,-152.909533,0.000367,51]
[358833380,1745487341916,-424.651617,0.000367,51]
[358833381,1745487341943,-424.651617,0.000367,51]
[358833382,1745487341971,-424.651617,0.000367,51]
[358833383,1745487341999,-424.651617,0.000367,51]
[358833384,1745487342029,-424.651617,0.000367,51]
[358833385,1745487342058,-250.779155,0.000367,51]
[358833386,1745487342086,-250.779155,0.000367,51]
[358833387,1745487342115,-250.779155,0.000367,51]
[358833388,1745487342145,-250.779155,0.000367,51]
[358833389,1745487342172,-250.779155,0.000367,51]
[358833390,1745487342199,-200.0,0.00037,52]
[358833391,1745487342225,-775.079412,0.00037348,30]
[358833392,1745487342253,-157.453687,0.00037348,30]
[358833393,1745487342279,-152.909533,0.00037348,30]
[358833394,1745487342305,-424.651617,0.00037348,30]
[358833395,1745487342332,-250.779155,0.00037348,30]
[358833396,1745487342357,-212.0,0.0003764,30]
[358833397,1745487342383,-200.0,0.000377,54]
[358833398,1745487342408,-500.0,0.000378,30]
[358833399,1745487342435,-1299.04446766,0.00037808,60]
[358833400,1745487342460,-270.6677347,0.00038,120]
[358833401,1745487342486,-200.0,0.00038,55]
[358833402,1745487342511,-164.203445,0.00038098,30]
[358833403,1745487342539,-775.079412,0.00038098,30]
[358833404,1745487342564,-162.96537,0.00038098,30]
[358833405,1745487342591,-157.453687,0.00038098,30]
[358833406,1745487342617,-152.909533,0.00038098,30]
[358833407,1745487342643,-424.651617,0.00038098,30]
[358833408,1745487342669,-250.779155,0.00038098,30]
[358833409,1745487342694,-154.571872,0.00038098,30]
[358833410,1745487342724,-775.079412,0.0003852,60]
[358833411,1745487342751,-152.909533,0.0003852,60]
[358833412,1745487342778,-424.651617,0.0003852,60]
[358833413,1745487342805,-250.779155,0.0003852,60]
[358833414,1745487342831,-200.0,0.000387,57]
[358833415,1745487342856,-212.0,0.0003879,30]
[358833416,1745487342883,-200.0,0.00039,58]
[358833417,1745487342910,-775.079412,0.00039232,60]
[358833418,1745487342937,-152.909533,0.00039232,60]
[358833419,1745487342963,-424.651617,0.00039232,60]
[358833420,1745487342992,-250.779155,0.00039232,60]
[358833421,1745487343019,-200.0,0.000397,60]
[358833422,1745487343046,-212.0,0.0003994,30]
[358833423,1745487343076,-775.079412,0.00039944,60]
[358833424,1745487343104,-157.453687,0.00039944,60]
[358833425,1745487343132,-152.909533,0.00039944,60]
[358833426,1745487343159,-424.651617,0.00039944,60]
[358833427,1745487343187,-250.779155,0.00039944,60]
[358833428,1745487343215,-50000.0,0.0004,30]
[358833429,1745487343240,-1020.17552117,0.0004,120]
[358833430,1745487343265,-629.0,0.0004,120]
[358833431,1745487343291,-200.0,0.0004,61]
[358833432,1745487343316,-9829.10415358,0.0004,30]
[358833433,1745487343341,-231845.31757771,0.0004,30]
[358833434,1745487343366,-100000.0,0.0004,60]
[358833435,1745487343395,-153.96,0.0004,30]
[358833436,1745487343419,-153.96,0.0004,30]
[358833437,1745487343446,-2110.0,0.00040096,30]
[358833438,1745487343472,-2110.0,0.00040596,30]
[358833439,1745487343498,-775.079412,0.00040656,60]
[358833440,1745487343524,-164.203445,0.00040656,60]
[358833441,1745487343549,-162.96537,0.00040656,60]
[358833442,1745487343576,-157.453687,0.00040656,60]
[358833443,1745487343602,-152.909533,0.00040656,60]
[358833444,1745487343628,-424.651617,0.00040656,60]
[358833445,1745487343656,-250.779155,0.00040656,60]
[358833446,1745487343682,-154.571872,0.00040656,60]
[358833447,1745487343709,-200.0,0.000407,63]
[358833448,1745487343734,-283.58445,0.00040888,30]
[358833449,1745487343762,-1655.9955,0.00041,30]
[358833450,1745487343788,-175.16116295,0.00041,30]
[358833451,1745487343813,-500.0,0.00041,120]
[358833452,1745487343840,-200.0,0.00041,64]
[358833453,1745487343866,-515.49828101,0.00041,120]
[358833454,1745487343891,-5614.0,0.00041,120]
[358833455,1745487343919,-283.58445,0.00041088,30]
[358833456,1745487343946,-212.0,0.0004109,30]
[358833457,1745487343973,-238.20467729,0.00041095,30]
[358833458,1745487344000,-500.0,0.00041095,30]
[358833459,1745487344027,-500.0,0.00041095,30]
[358833460,1745487344057,-500.0,0.00041095,30]
[358833461,1745487344083,-500.0,0.00041095,30]
[358833462,1745487344111,-500.0,0.00041095,30]
[358833463,1745487344140,-266.17346774,0.00041095,30]
[358833464,1745487344168,-500.0,0.00041095,30]
[358833465,1745487344197,-620.93155152,0.00041095,30]
[358833466,1745487344225,-500.0,0.00041095,30]
[358833467,1745487344252,-530.37148421,0.00041095,30]
[358833468,1745487344279,-554.39188578,0.00041095,30]
[358833469,1745487344306,-500.0,0.00041095,30]
[358833470,1745487344332,-500.0,0.00041095,30]
[358833471,1745487344359,-500.0,0.00041095,30]
[358833472,1745487344385,-500.0,0.00041095,30]
[358833473,1745487344411,-500.0,0.00041095,30]
[358833474,1745487344438,-500.0,0.00041095,30]
[358833475,1745487344464,-500.0,0.00041095,30]
[358833476,1745487344492,-319.33694656,0.00041095,30]
[358833477,1745487344518,-616.31,0.00041095,30]
[358833478,1745487344544,-616.31,0.00041095,30]
[358833479,1745487344570,-616.31,0.00041095,30]
[358833480,1745487344596,-616.31,0.00041095,30]
[358833481,1745487344837,-616.31,0.00041095,30]
[358833482,1745487344867,-616.31,0.00041095,30]
[358833483,1745487344893,-616.31,0.00041095,30]
[358833484,1745487344920,-616.31,0.00041095,30]
[358833485,1745487344946,-616.31,0.00041095,30]
[358833486,1745487344972,-616.31,0.00041095,30]
[358833487,1745487344998,-616.31,0.00041095,30]
[358833488,1745487345023,-616.31,0.00041095,30]
[358833489,1745487345051,-616.31,0.00041095,30]
[358833490,1745487345079,-616.31,0.00041095,30]
[358833491,1745487345105,-616.31,0.00041095,30]
[358833492,1745487345133,-616.31,0.00041095,30]
[358833493,1745487345160,-616.31,0.00041095,30]
[358833494,1745487345188,-616.31,0.00041095,30]
[358833495,1745487345214,-616.31,0.00041095,30]
[358833496,1745487345240,-616.31,0.00041095,30]
[358833497,1745487345266,-616.31,0.00041095,30]
[358833498,1745487345292,-616.31,0.00041095,30]
[358833499,1745487345318,-616.31,0.00041095,30]
[358833500,1745487345344,-616.5026327,0.00041095,30]
[358833501,1745487345371,-1767.56,0.00041095,30]
[358833502,1745487345399,-1767.56,0.00041095,30]
[358833503,1745487345427,-1767.56,0.00041095,30]
[358833504,1745487345456,-1767.56,0.00041095,30]
[358833505,1745487345484,-1767.56,0.00041095,30]
[358833506,1745487345511,-1767.56,0.00041095,30]
[358833507,1745487345538,-1767.56,0.00041095,30]
[358833508,1745487345565,-1767.56,0.00041095,30]
[358833509,1745487345592,-1767.56,0.00041095,30]
[358833510,1745487345619,-1767.56,0.00041095,30]
[358833511,1745487345646,-1767.56,0.00041095,30]
[358833512,1745487345672,-1767.56,0.00041095,30]
[358833513,1745487345698,-1767.56,0.00041095,30]
[358833514,1745487345725,-1767.56,0.00041095,30]
[358833515,1745487345752,-1767.56,0.00041095,30]
[358833516,1745487345779,-1767.56,0.00041095,30]
[358833517,1745487345806,-1767.56,0.00041095,30]
[358833518,1745487345832,-1767.56,0.00041095,30]
[358833519,1745487345859,-1767.56,0.00041095,30]
[358833520,1745487345884,-1767.56,0.00041095,30]
[358833521,1745487345910,-1767.56,0.00041095,30]
[358833522,1745487345937,-1767.56,0.00041095,30]
[358833523,1745487345967,-1767.56,0.00041095,30]
[358833524,1745487345995,-1767.67915037,0.00041095,30]
[358833525,1745487346022,-500.0,0.00041095,30]
[358833526,1745487346049,-500.0,0.00041095,30]
[358833527,1745487346077,-500.0,0.00041095,30]
[358833528,1745487346104,-500.0,0.00041095,30]
[358833529,1745487346131,-500.0,0.00041095,30]
[358833530,1745487346158,-500.0,0.00041095,30]
[358833531,1745487346186,-403.62809364,0.00041095,30]
[358833532,1745487346214,-1084.04,0.00041095,30]
[358833533,1745487346242,-1084.04,0.00041095,30]
[358833534,1745487346270,-1084.04,0.00041095,30]
[358833535,1745487346296,-1084.04,0.00041095,30]
[358833536,1745487346323,-1084.04,0.00041095,30]
[358833537,1745487346350,-1084.04,0.00041095,30]
[358833538,1745487346377,-1084.04,0.00041095,30]
[358833539,1745487346403,-1084.04,0.00041095,30]
[358833540,1745487346430,-1084.04,0.00041095,30]
[358833541,1745487346458,-1084.04,0.00041095,30]
[358833542,1745487346486,-1084.04,0.00041095,30]
[358833543,1745487346512,-1084.04,0.00041095,30]
[358833544,1745487346538,-1084.04,0.00041095,30]
[358833545,1745487346564,-1084.04,0.00041095,30]
[358833546,1745487346590,-1084.04,0.00041095,30]
[358833547,1745487346616,-1084.04,0.00041095,30]
[358833548,1745487346642,-1084.04,0.00041095,30]
[358833549,1745487346667,-1084.04,0.00041095,30]
[358833550,1745487346693,-1084.04,0.00041095,30]
[358833551,1745487346719,-1084.04,0.00041095,30]
[358833552,1745487346745,-1084.04,0.00041095,30]
[358833553,1745487346770,-1084.04,0.00041095,30]
[358833554,1745487346795,-1084.04,0.00041095,30]
[358833555,1745487346821,-1084.08407348,0.00041095,30]
[358833556,1745487346848,-500.0,0.00041095,30]
[358833557,1745487346875,-500.0,0.00041095,30]
[358833558,1745487346900,-516.20538319,0.00041095,30]
[358833559,1745487346927,-500.0,0.00041095,30]
[358833560,1745487346953,-500.0,0.00041095,30]
[358833561,1745487346980,-500.0,0.00041095,30]
[358833562,1745487347007,-542.30448644,0.00041095,30]
[358833563,1745487347033,-500.0,0.00041095,30]
[358833564,1745487347062,-500.0,0.00041095,30]
[358833565,1745487347088,-500.0,0.00041095,30]
[358833566,1745487347119,-500.0,0.00041095,30]
[358833567,1745487347150,-500.0,0.00041095,30]
[358833568,1745487347176,-500.0,0.00041095,30]
[358833569,1745487347202,-500.0,0.00041095,30]
[358833570,1745487347230,-326.5,0.00041095,120]
[358833571,1745487347257,-500.0,0.00041096,30]
[358833572,1745487347284,-500.0,0.00041096,30]
[358833573,1745487347309,-4000.0,0.00041096,60]
[358833574,1745487347334,-600.0,0.00041096,60]
[358833575,1745487347359,-150.0,0.00041096,30]
[358833576,1745487347384,-150.0,0.00041096,30]
[358833577,1745487347408,-276.74995372,0.00041096,30]
[358833578,1745487347434,-150.0,0.00041096,30]
[358833579,1745487347460,-150.0,0.00041096,30]
[358833580,1745487347485,-150.0,0.00041096,30]
[358833581,1745487347511,-150.0,0.00041096,30]
[358833582,1745487347536,-150.0,0.00041096,30]
[358833583,1745487347562,-150.0,0.00041096,30]
[358833584,1745487347587,-150.0,0.00041096,30]
[358833585,1745487347612,-150.0,0.00041096,30]
[358833586,1745487347857,-2110.0,0.00041096,30]
[358833587,1745487347883,-500.0,0.00041104,30]
[358833588,1745487347910,-500.0,0.00041111,30]
[358833589,1745487347937,-500.0,0.00041115,30]
[358833590,1745487347964,-2400.0,0.00041128,30]
[358833591,1745487347992,-276.74995372,0.00041152,30]
[358833592,1745487348019,-150.0,0.00041168,30]
[358833593,1745487348047,-150.0,0.00041169,30]
[358833594,1745487348079,-150.0,0.00041182,30]
[358833595,1745487348109,-276.74995372,0.00041209,30]
[358833596,1745487348137,-500.0,0.00041211,30]
[358833597,1745487348165,-150.0,0.00041212,30]
[358833598,1745487348194,-500.0,0.0004123,30]
[358833599,1745487348223,-150.0,0.00041239,30]
[358833600,1745487348251,-150.0,0.00041241,30]
[358833601,1745487348278,-150.0,0.00041243,30]
[358833602,1745487348305,-276.74995372,0.00041265,30]
[358833603,1745487348331,-150.0,0.00041268,30]
[358833604,1745487348356,-150.0,0.00041276,30]
[358833605,1745487348383,-283.58445,0.00041288,30]
[358833606,1745487348411,-150.0,0.00041311,30]
[358833607,1745487348440,-150.0,0.00041314,30]
[358833608,1745487348468,-276.74995372,0.00041322,30]
[358833609,1745487348497,-150.0,0.00041329,30]
[358833610,1745487348525,-150.0,0.00041354,30]
[358833611,1745487348553,-500.0,0.00041369,30]
[358833612,1745487348581,-276.74995372,0.00041378,30]
[358833613,1745487348609,-150.0,0.00041383,30]
[358833614,1745487348636,-150.0,0.00041386,30]
[358833615,1745487348663,-150.0,0.0004139,30]
[358833616,1745487348692,-276.74995372,0.00041435,30]
[358833617,1745487348719,-150.0,0.0004144,30]
[358833618,1745487348747,-150.0,0.00041445,30]
[358833619,1745487348775,-500.0,0.00041454,30]
[358833620,1745487348803,-150.0,0.00041454,30]
[358833621,1745487348830,-150.0,0.00041457,30]
[358833622,1745487348858,-150.0,0.00041459,30]
[358833623,1745487348885,-283.58445,0.00041488,30]
[358833624,1745487348913,-276.74995372,0.00041491,30]
[358833625,1745487348939,-500.0,0.00041496,30]
[358833626,1745487348967,-38702.21,0.000415,120]
[358833627,1745487348993,-150.0,0.00041526,30]
[358833628,1745487349019,-150.0,0.00041526,30]
[358833629,1745487349046,-150.0,0.00041531,30]
[358833630,1745487349076,-150.0,0.00041537,30]
[358833631,1745487349103,-276.74995372,0.00041548,30]
[358833632,1745487349131,-150.0,0.00041562,30]
[358833633,1745487349159,-500.0,0.00041582,30]
[358833634,1745487349187,-2110.0,0.00041596,30]
[358833635,1745487349214,-150.0,0.00041597,30]
[358833636,1745487349241,-509.85911948,0.00041602,30]
[358833637,1745487349268,-276.74995372,0.00041604,30]
[358833638,1745487349294,-150.0,0.00041604,30]
[358833639,1745487349320,-150.0,0.00041604,30]
[358833640,1745487349346,-150.0,0.00041612,30]
[358833641,1745487349373,-1295.07,0.00041619,30]
[358833642,1745487349400,-2400.0,0.00041621,30]
[358833643,1745487349427,-150.0,0.00041637,30]
[358833644,1745487349453,-500.0,0.00041643,30]
[358833645,1745487349480,-276.74995372,0.0004166,30]
[358833646,1745487349507,-150.0,0.00041669,30]
[358833647,1745487349533,-150.0,0.00041677,30]
[358833648,1745487349562,-150.0,0.00041678,30]
[358833649,1745487349587,-150.0,0.00041684,30]
[358833650,1745487349614,-283.58445,0.00041688,30]
[358833651,1745487349641,-150.0,0.00041698,30]
[358833652,1745487349669,-200.0,0.000417,66]
[358833653,1745487349693,-8100.0,0.000417,30]
[358833654,1745487349719,-500.0,0.00041708,30]
[358833655,1745487349745,-276.74995372,0.00041717,30]
[358833656,1745487349770,-8100.0,0.00041732,30]
[358833657,1745487349796,-500.0,0.00041732,30]
[358833658,1745487349822,-150.0,0.00041741,30]
[358833659,1745487349847,-150.0,0.00041749,30]
[358833660,1745487349871,-276.74995372,0.00041773,30]
[358833661,1745487349898,-150.0,0.00041784,30]
[358833662,1745487349924,-500.0,0.00041787,30]
[358833663,1745487349951,-150.0,0.00041794,30]
[358833664,1745487349976,-2400.0,0.000418,30]
[358833665,1745487350002,-150.0,0.00041812,30]
[358833666,1745487350029,-150.0,0.00041817,30]
[358833667,1745487350058,-2000.0,0.00041818,120]
[358833668,1745487350086,-164.285917,0.00041818,120]
[358833669,1745487350114,-150.0,0.00041822,30]
[358833670,1745487350143,-276.74995372,0.0004183,30]
[358833671,1745487350170,-150.0,0.00041831,30]
[358833672,1745487350197,-150.0,0.0004187,30]
[358833673,1745487350224,-150.0,0.00041884,30]
[358833674,1745487350250,-276.74995372,0.00041886,30]
[358833675,1745487350276,-283.58445,0.00041888,30]
[358833676,1745487350302,-150.0,0.00041894,30]
[358833677,1745487350327,-150.0,0.00041911,30]
[358833678,1745487350353,-500.0,0.00041917,30]
[358833679,1745487350379,-2400.0,0.0004194,30]
[358833680,1745487350406,-276.74995372,0.00041943,30]
[358833681,1745487350431,-150.0,0.00041956,30]
[358833682,1745487350457,-150.0,0.00041956,30]
[358833683,1745487350482,-150.0,0.00041967,30]
[358833684,1745487350507,-150.5,0.0004197,120]
[358833685,1745487350531,-165.32,0.0004197,120]
[358833686,1745487350556,-297.99,0.0004197,120]
[358833687,1745487350581,-289.93,0.0004197,120]
[358833688,1745487350606,-161.0,0.0004197,120]
[358833689,1745487350632,-161.0,0.0004197,120]
[358833690,1745487350872,-150.0,0.00041978,30]
[358833691,1745487350901,-150.5,0.0004198,120]
[358833692,1745487350928,-150.5,0.0004198,120]
[358833693,1745487350956,-150.5,0.0004198,120]
[358833694,1745487350982,-150.5,0.0004198,120]
[358833695,1745487351009,-161.0,0.0004198,120]
[358833696,1745487351036,-161.0,0.0004198,120]
[358833697,1745487351064,-161.0,0.0004198,120]
[358833698,1745487351091,-169.93,0.0004198,120]
[358833699,1745487351119,-500.0,0.00041984,30]
[358833700,1745487351148,-1300.0,0.00041985,30]
[358833701,1745487351175,-150.5,0.0004199,120]
[358833702,1745487351202,-150.5,0.0004199,120]
[358833703,1745487351230,-150.5,0.0004199,120]
[358833704,1745487351257,-150.5,0.0004199,120]
[358833705,1745487351283,-161.0,0.0004199,120]
[358833706,1745487351309,-161.0,0.0004199,120]
[358833707,1745487351335,-161.0,0.0004199,120]
[358833708,1745487351362,-161.0,0.0004199,120]
[358833709,1745487351388,-150.0,0.00041997,30]
[358833710,1745487351414,-276.74995372,0.00041999,30]
[358833711,1745487351441,-163.869999,0.00042,30]
[358833712,1745487351468,-987.604551,0.00042,43]
[358833713,1745487351494,-200.0,0.00042,67]
[358833714,1745487351520,-153.92,0.00042,30]
[358833715,1745487351546,-500.0,0.00042,40]
[358833716,1745487351576,-200.0,0.00042,120]
[358833717,1745487351602,-10000.0,0.00042,120]
[358833718,1745487351630,-57932.18,0.00042,60]
[358833719,1745487351654,-1011.9,0.00042,53]
[358833720,1745487351680,-500.0,0.0004201,30]
[358833721,1745487351706,-150.0,0.00042027,30]
[358833722,1745487351732,-150.0,0.00042027,30]
[358833723,1745487351758,-2400.0,0.00042034,30]
[358833724,1745487351784,-150.0,0.00042039,30]
[358833725,1745487351809,-150.0,0.00042042,30]
[358833726,1745487351836,-1300.0,0.00042047,30]
[358833727,1745487351863,-276.74995372,0.00042056,30]
[358833728,1745487351888,-283.58445,0.00042088,30]
[358833729,1745487351915,-2110.0,0.00042096,30]
[358833730,1745487351942,-150.0,0.00042099,30]
[358833731,1745487351968,-276.74995372,0.00042112,30]
[358833732,1745487351995,-150.0,0.00042112,30]
[358833733,1745487352022,-150.0,0.00042112,30]
[358833734,1745487352050,-150.0,0.00042125,30]
[358833735,1745487352079,-150.0,0.00042128,30]
[358833736,1745487352105,-500.0,0.00042128,30]
[358833737,1745487352132,-150.0,0.00042144,30]
[358833738,1745487352159,-1011.9,0.0004215,54]
[358833739,1745487352185,-276.74995372,0.00042168,30]
[358833740,1745487352212,-150.0,0.00042171,30]
[358833741,1745487352238,-150.0,0.00042178,30]
[358833742,1745487352263,-150.0,0.00042185,30]
[358833743,1745487352289,-500.0,0.00042191,30]
[358833744,1745487352315,-600.0,0.00042192,60]
[358833745,1745487352341,-2400.0,0.0004221,30]
[358833746,1745487352367,-150.0,0.00042214,30]
[358833747,1745487352392,-164.9,0.00042223,30]
[358833748,1745487352417,-168.04,0.00042223,30]
[358833749,1745487352443,-351.2,0.00042223,30]
[358833750,1745487352470,-351.2,0.00042223,30]
[358833751,1745487352496,-351.2,0.00042223,30]
[358833752,1745487352523,-961.55,0.00042223,30]
[358833753,1745487352549,-276.74995372,0.00042225,30]
[358833754,1745487352575,-150.0,0.00042242,30]
[358833755,1745487352601,-150.0,0.00042257,30]
[358833756,1745487352627,-150.0,0.0004226,30]
[358833757,1745487352652,-1071.0,0.00042263,30]
[358833758,1745487352677,-150.0,0.00042272,30]
[358833759,1745487352702,-8100.0,0.00042279,30]
[358833760,1745487352728,-276.74995372,0.00042281,30]
[358833761,1745487352753,-283.58445,0.00042288,30]
[358833762,1745487352779,-500.0,0.00042289,30]
[358833763,1745487352804,-500.0,0.00042293,30]
[358833764,1745487352828,-150.0,0.000423,30]
[358833765,1745487352854,-1011.9,0.000423,55]
[358833766,1745487352879,-150.0,0.00042314,30]
[358833767,1745487352907,-1300.0,0.00042324,30]
[358833768,1745487352936,-150.0,0.0004233,30]
[358833769,1745487352964,-276.74995372,0.00042338,30]
[358833770,1745487352992,-18828.35878845,0.00042355,30]
[358833771,1745487353020,-150.0,0.00042358,30]
[358833772,1745487353046,-500.0,0.0004237,30]
[358833773,1745487353076,-150.0,0.00042377,30]
[358833774,1745487353103,-150.0,0.00042386,30]
[358833775,1745487353132,-150.0,0.00042386,30]
[358833776,1745487353161,-276.74995372,0.00042394,30]
[358833777,1745487353188,-150.0,0.00042402,30]
[358833778,1745487353216,-150.0,0.00042419,30]
[358833779,1745487353244,-807.429,0.00042424,64]
[358833780,1745487353271,-1300.0,0.00042424,30]
[358833781,1745487353297,-1300.0,0.0004244,30]
[358833782,1745487353323,-1011.9,0.0004245,56]
[358833783,1745487353349,-276.74995372,0.00042451,30]
[358833784,1745487353374,-498.90024189,0.00042453,30]
[358833785,1745487353400,-500.0,0.00042455,30]
[358833786,1745487353425,-150.0,0.00042457,30]
[358833787,1745487353450,-500.0,0.00042465,30]
[358833788,1745487353477,-326.5,0.00042465,120]
[358833789,1745487353504,-150.0,0.00042472,30]
[358833790,1745487353530,-150.0,0.00042475,30]
[358833791,1745487353556,-283.58445,0.00042488,30]
[358833792,1745487353582,-150.0,0.00042493,30]
[358833793,1745487353607,-151.85618485,0.000425,30]
[358833794,1745487353845,-600.0,0.000425,120]
[358833795,1745487353872,-276.74995372,0.00042507,30]
[358833796,1745487353898,-2400.0,0.00042513,30]
[358833797,1745487353927,-150.0,0.00042529,30]
[358833798,1745487353954,-150.0,0.00042538,30]
[358833799,1745487353980,-150.0,0.00042547,30]
[358833800,1745487354007,-1300.0,0.00042557,30]
[358833801,1745487354034,-150.0,0.00042557,30]
[358833802,1745487354063,-276.74995372,0.00042564,30]
[358833803,1745487354090,-150.0,0.00042567,30]
[358833804,1745487354118,-1300.0,0.00042569,30]
[358833805,1745487354146,-8100.0,0.00042578,30]
[358833806,1745487354175,-500.0,0.00042588,30]
[358833807,1745487354202,-2110.0,0.00042596,30]
[358833808,1745487354229,-1011.9,0.000426,58]
[358833809,1745487354256,-150.0,0.000426,30]
[358833810,1745487354282,-150.0,0.00042609,30]
[358833811,1745487354308,-276.74995372,0.0004262,30]
[358833812,1745487354333,-150.0,0.0004262,30]
[358833813,1745487354359,-150.0,0.0004262,30]
[358833814,1745487354384,-500.0,0.00042624,30]
[358833815,1745487354409,-500.0,0.00042625,30]
[358833816,1745487354435,-150.0,0.00042643,30]
[358833817,1745487354461,-150.0,0.00042672,30]
[358833818,1745487354487,-276.74995372,0.00042676,30]
[358833819,1745487354513,-8100.0,0.00042678,30]
[358833820,1745487354539,-283.58445,0.00042688,30]
[358833821,1745487354565,-150.0,0.00042693,30]
[358833822,1745487354592,-200.0,0.000427,69]
[358833823,1745487354618,-150.0,0.00042714,30]
[358833824,1745487354645,-150.0,0.00042718,30]
[358833825,1745487354673,-150.0,0.00042726,30]
[358833826,1745487354700,-150.0,0.00042729,30]
[358833827,1745487354727,-276.74995372,0.00042733,30]
[358833828,1745487354752,-605.13520702,0.00042739,30]
[358833829,1745487354778,-150.0,0.00042744,30]
[358833830,1745487354804,-1011.9,0.0004275,59]
[358833831,1745487354830,-150.0,0.00042765,30]
[358833832,1745487354856,-2400.0,0.00042787,30]
[358833833,1745487354883,-276.74995372,0.00042789,30]
[358833834,1745487354909,-500.0,0.00042808,30]
[358833835,1745487354936,-150.0,0.00042815,30]
[358833836,1745487354964,-150.0,0.00042815,30]
[358833837,1745487354993,-150.0,0.00042838,30]
[358833838,1745487355022,-150.0,0.00042842,30]
[358833839,1745487355054,-276.74995372,0.00042846,30]
[358833840,1745487355091,-150.0,0.00042861,30]
[358833841,1745487355121,-500.0,0.00042874,30]
[358833842,1745487355150,-150.0,0.00042887,30]
[358833843,1745487355181,-283.58445,0.00042888,30]
[358833844,1745487355214,-150.0,0.00042899,30]
[358833845,1745487355243,-1011.9,0.000429,60]
[358833846,1745487355271,-150.0,0.00042901,30]
[358833847,1745487355299,-276.74995372,0.00042902,30]
[358833848,1745487355327,-150.0,0.0004291,30]
[358833849,1745487355355,-500.0,0.00042944,30]
[358833850,1745487355384,-1300.0,0.00042946,30]
[358833851,1745487355412,-500.0,0.00042955,30]
[358833852,1745487355440,-276.74995372,0.00042959,30]
[358833853,1745487355474,-150.0,0.00042959,30]
[358833854,1745487355504,-150.0,0.00042959,30]
[358833855,1745487355532,-150.0,0.00042959,30]
[358833856,1745487355559,-150.0,0.00042983,30]